fUST/lending_fUST_20260416
["ID","MTS","AMOUNT","RATE_DAILY","PERIOD"]
[420591957,1776285039495,-500.0,0.00013698,2]
[420591959,1776285039504,-500.0,0.00013698,2]
[420591961,1776285039512,-500.0,0.00013698,2]
[420591963,1776285039521,-500.0,0.00013698,2]
[420591965,1776285039530,-566.8086423,0.00013698,2]
[420591967,1776285039540,-500.0,0.00013698,2]
[420591969,1776285039549,-500.0,0.00013698,2]
[420591971,1776285039558,-240.11815938,0.00013698,2]
[420591972,1776285039568,-495.93889298,0.00013698,2]
[420591974,1776285039577,-500.0,0.00013698,2]
[420591976,1776285039585,-500.0,0.00013698,2]
[420591978,1776285039594,-500.0,0.00013698,2]
[420591980,1776285039604,-417.74,0.00013698,2]
[420591982,1776285039613,-500.0,0.00013698,2]
[420591984,1776285039622,-500.0,0.00013698,2]
[420591986,1776285039632,-500.0,0.00013698,2]
[420591988,1776285039641,-500.0,0.00013698,2]
[420591990,1776285039650,-500.0,0.00013698,2]
[420591992,1776285039659,-500.0,0.00013698,2]
[420591994,1776285039670,-500.0,0.00013698,2]
[420591996,1776285039679,-500.0,0.00013698,2]
[420591998,1776285039688,-500.0,0.00013698,2]
[420592000,1776285039697,-500.0,0.00013698,2]
[420592002,1776285039706,-500.0,0.00013698,2]
[420592004,1776285039716,-500.0,0.00013698,2]
[420592006,1776285039725,-500.0,0.00013698,2]
[420592008,1776285039734,-308.90979943,0.00013698,2]
[420592010,1776285039743,-500.0,0.00013698,2]
[420592012,1776285039752,-500.0,0.00013698,2]
[420592014,1776285039762,-500.0,0.00013698,2]
[420592016,1776285039770,-500.0,0.00013698,2]
[420592018,1776285039779,-500.0,0.00013698,2]
[420592020,1776285039788,-500.0,0.00013698,2]
[420592022,1776285039797,-500.0,0.00013698,2]
[420592024,1776285039806,-500.0,0.00013698,2]
[420592026,1776285039815,-500.0,0.00013698,2]
[420592027,1776285039824,-500.0,0.00013698,2]
[420592029,1776285039833,-500.0,0.00013698,2]
[420592031,1776285039843,-500.0,0.00013698,2]
[420592033,1776285039853,-500.0,0.00013698,2]
[420592035,1776285039862,-500.0,0.00013698,2]
[420592037,1776285039872,-500.0,0.00013698,2]
[420592039,1776285039882,-500.0,0.00013698,2]
[420592041,1776285039891,-247.33288889,0.00013698,2]
[420592043,1776285039900,-589.52732136,0.00013698,2]
[420592045,1776285039909,-500.0,0.00013698,2]
[420592047,1776285039919,-500.0,0.00013698,2]
[420592049,1776285039928,-500.0,0.00013698,2]
[420592051,1776285039937,-500.0,0.00013698,2]
[420592053,1776285039946,-500.0,0.00013698,2]
[420592055,1776285039955,-500.0,0.00013698,2]
[420592057,1776285039964,-500.0,0.00013698,2]
[420592059,1776285039974,-500.0,0.00013698,2]
[420592061,1776285039984,-269.15370357,0.00013698,2]
[420592063,1776285039993,-675.04,0.00013698,2]
[420592065,1776285040002,-675.04,0.00013698,2]
[420592067,1776285040012,-675.04,0.00013698,2]
[420592069,1776285040021,-675.04,0.00013698,2]
[420592071,1776285040032,-675.04,0.00013698,2]
[420592073,1776285040041,-675.04,0.00013698,2]
[420592075,1776285040051,-126.95470902,0.00013698,2]
[420592152,1776285040704,470.0,0.00026799,120]
[420592341,1776285043730,-548.08529098,0.00013698,2]
[420592342,1776285043739,-121.29004539,0.00013698,2]
[420592347,1776285046668,-649.11,0.00013561,2]
[420592528,1776285156829,209.0,0.00026799,120]
[420592530,1776285252621,5976.17393904,0.00027397,120]
[420592535,1776285315247,471.0,0.00026799,120]
[420592542,1776285403608,945.0,0.00026799,120]
[420592551,1776285514092,552.0,0.00026787,120]
[420592556,1776285622059,180.0,0.00026787,120]
[420592591,1776286227777,446.0,0.00027397,120]
[420592592,1776286232595,-567.76,7.798e-05,2]
[420592593,1776286232648,-4368.7463107,7.798e-05,2]
[420592932,1776286238933,-63.4936893,7.798e-05,2]
[420592933,1776286238943,-876.14995239,7.877e-05,2]
[420592934,1776286238954,-478.85715799,7.877e-05,2]
[420592935,1776286238989,-3644.99288962,7.877e-05,2]
[420592936,1776286238998,-532.0,7.957e-05,2]
[420592937,1776286239007,-300.0,7.957e-05,2]
[420592938,1776286239016,-271.00102513,7.958e-05,2]
[420592939,1776286239025,-300.0,8.12e-05,2]
[420592940,1776286239034,-1200.0,8.197e-05,2]
[420592941,1776286239044,-300.0,8.198e-05,2]
[420592942,1776286239054,-300.0,8.198e-05,2]
[420592943,1776286239063,-300.0,8.198e-05,2]
[420592944,1776286239072,-300.0,8.198e-05,2]
[420592945,1776286239082,-300.0,8.198e-05,2]
[420592946,1776286239090,-300.0,8.198e-05,2]
[420592947,1776286239100,-300.0,8.198e-05,2]
[420592948,1776286239109,-300.0,8.198e-05,2]
[420592949,1776286239118,-300.0,8.198e-05,2]
[420592950,1776286239127,-300.0,8.198e-05,2]
[420592951,1776286239136,-300.0,8.198e-05,2]
[420592952,1776286239145,-300.0,8.198e-05,2]
[420592953,1776286239154,-300.0,8.198e-05,2]
[420592954,1776286239164,-300.0,8.198e-05,2]
[420592955,1776286239173,-300.0,8.198e-05,2]
[420592956,1776286239182,-600.0,8.361e-05,2]
[420592957,1776286239191,-420.0,8.753e-05,2]
[420592958,1776286239201,-200.0,9.004e-05,7]
[420592959,1776286239210,-1680.0,9.017e-05,2]
[420592960,1776286239220,-720.0,9.197e-05,2]
[420592961,1776286239229,-500.0,9.382e-05,2]
[420592962,1776286239239,-500.0,9.382e-05,2]
[420592963,1776286239250,-500.0,9.382e-05,2]
[420592964,1776286239260,-233.6859,9.382e-05,2]
[420592965,1776286239270,-500.0,9.382e-05,2]
[420592966,1776286239280,-500.0,9.382e-05,2]
[420592967,1776286239290,-500.0,9.382e-05,2]
[420592968,1776286239300,-500.0,9.382e-05,2]
[420592969,1776286239310,-500.0,9.382e-05,2]
[420592970,1776286239320,-500.0,9.382e-05,2]
[420592971,1776286239330,-500.0,9.382e-05,2]
[420592972,1776286239340,-570.0,9.382e-05,2]
[420592973,1776286239350,-500.0,9.382e-05,2]
[420592974,1776286239360,-259.5,9.382e-05,2]
[420592975,1776286239369,-500.0,9.382e-05,2]
[420592976,1776286239379,-300.0,9.382e-05,2]
[420592977,1776286239389,-249.0697244,9.383e-05,2]
[420592978,1776286239398,-258.94927899,9.383e-05,2]
[420592979,1776286239407,-500.0,9.383e-05,2]
[420592980,1776286239417,-500.0,9.383e-05,2]
[420592981,1776286239427,-500.0,9.383e-05,2]
[420592982,1776286239436,-500.0,9.383e-05,2]
[420592983,1776286239445,-500.0,9.383e-05,2]
[420592984,1776286239455,-500.0,9.383e-05,2]
[420592985,1776286239465,-500.0,9.383e-05,2]
[420592986,1776286239474,-500.0,9.383e-05,2]
[420592987,1776286239483,-500.0,9.383e-05,2]
[420592988,1776286239492,-500.0,9.383e-05,2]
[420592989,1776286239502,-500.0,9.383e-05,2]
[420592990,1776286239511,-500.0,9.383e-05,2]
[420592991,1776286239521,-500.0,9.383e-05,2]
[420592992,1776286239530,-500.0,9.383e-05,2]
[420592993,1776286239539,-500.0,9.383e-05,2]
[420592994,1776286239548,-500.0,9.383e-05,2]
[420592995,1776286239557,-315.16990372,9.383e-05,2]
[420592996,1776286239567,-500.0,9.383e-05,2]
[420592997,1776286239576,-40077.09861724,9.384e-05,2]
[420592998,1776286239585,-25442.66705104,9.384e-05,2]
[420592999,1776286239597,-269589.32592823,9.384e-05,2]
[420593000,1776286239644,-4553.54716792,9.384e-05,2]
[420593086,1776286241567,-2284.60625744,9.384e-05,2]
[420593099,1776286243859,-2244.0,9.384e-05,2]
[420593100,1776286243870,-431.83675393,9.384e-05,2]
[420593101,1776286244019,-78198.86173871,9.384e-05,2]
[420593157,1776286246918,-1990.81806713,9.29e-05,2]
[420593158,1776286246928,-11517.25319474,9.384e-05,2]
[420593159,1776286246937,-200.0,9.478e-05,30]
[420593160,1776286246947,-575.29269447,9.478e-05,2]
[420593161,1776286246956,-253.0,9.628e-05,2]
[420593162,1776286246965,-319.78120965,9.958e-05,2]
[420593163,1776286246974,-864.0,0.00010117,2]
[420593164,1776286246983,-169.27,0.00010248,2]
[420593165,1776286246993,-184.0,0.00010256,2]
[420593166,1776286247002,-172.85,0.00010261,2]
[420593167,1776286247012,-180.11,0.00010287,2]
[420593168,1776286247021,-190.03,0.00010316,2]
[420593169,1776286247031,-575.29269443,0.00010433,2]
[420593170,1776286247040,-608.47426432,0.00010959,2]
[420593171,1776286247049,-608.47426432,0.00010959,2]
[420593172,1776286247058,-608.47426432,0.00010959,2]
[420593173,1776286247067,-608.47426432,0.00010959,2]
[420593174,1776286247076,-608.47426432,0.00010959,2]
[420593176,1776286247086,-608.47426432,0.00010959,2]
[420593177,1776286247094,-608.47426432,0.00010959,2]
[420593178,1776286247103,-608.47426432,0.00010959,2]
[420593179,1776286247113,-608.47426432,0.00010959,2]
[420593180,1776286247122,-608.47426432,0.00010959,2]
[420593181,1776286247131,-608.47426432,0.00010959,2]
[420593182,1776286247141,-608.47426432,0.00010959,2]
[420593183,1776286247149,-608.47426432,0.00010959,2]
[420593184,1776286247158,-608.47426432,0.00010959,2]
[420593185,1776286247167,-608.47426432,0.00010959,2]
[420593186,1776286247177,-661.71576246,0.00010959,2]
[420593187,1776286247186,-661.71576246,0.00010959,2]
[420593188,1776286247195,-661.71576246,0.00010959,2]
[420593189,1776286247204,-661.71576246,0.00010959,2]
[420593190,1776286247214,-661.71576246,0.00010959,2]
[420593191,1776286247223,-243.18538058,0.00010959,2]
[420593192,1776286247256,-300.0,0.00010959,2]
[420593284,1776286457752,447.0,0.00026787,120]
[420593289,1776286545494,199.0,0.00026749,120]
[420593296,1776286691916,447.0,0.00026787,120]
[420593300,1776286785462,898.0,0.00026749,120]
[420593304,1776286862743,-300.0,7.62e-05,2]
[420593305,1776286862765,-300.0,7.621e-05,2]
[420593306,1776286862784,-493.73378429,7.621e-05,2]
[420593308,1776286884929,525.0,0.00026749,120]
[420593311,1776286986501,171.0,0.00026749,120]
[420593315,1776287082021,9000.0,0.00027397,120]
[420593364,1776287431799,-576.63314209,7.176e-05,2]
[420593371,1776287431854,-4423.36685791,7.176e-05,2]
[420593373,1776287431863,-1039.18227622,7.248e-05,2]
[420593379,1776287431908,-54.55150807,7.248e-05,2]
[420593381,1776287431917,-522.0,7.248e-05,2]
[420593383,1776287431926,-2185.81857674,7.306e-05,2]
[420593385,1776287431936,-1622.67411219,7.406e-05,2]
[420593514,1776287443217,-5000.0,7.332e-05,2]
[420593515,1776287443226,-280.51865226,7.369e-05,2]
[420593516,1776287443235,-2770.13949122,7.406e-05,2]
[420593517,1776287443244,-3028.04119386,7.506e-05,2]
[420593518,1776287443271,-1572.21351021,7.506e-05,2]
[420593519,1776287443280,-327.53977028,7.698e-05,2]
[420593520,1776287443289,-72.24671951,7.857e-05,2]
[420593529,1776287446184,-137.45953305,7.857e-05,2]
[420593530,1776287446194,-4953.07008388,8.314e-05,2]
[420593531,1776287446204,-331.01200967,9.369e-05,2]
[420593532,1776287446213,-5305.8854638,9.419e-05,2]
[420593533,1776287446223,-1199.0,9.432e-05,2]
[420593534,1776287446233,-1129.0028713,9.434e-05,2]
[420593535,1776287446242,-184.0,0.0001015,2]
[420593536,1776287446251,-12880.88087847,0.0001042,2]
[420593537,1776287446266,-802.0264,0.0001042,2]
[420593540,1776287843939,424.0,0.00026812,120]
[420593575,1776287996627,189.0,0.00026812,120]
[420593576,1776288159038,425.0,0.00026812,120]
[420593577,1776288250179,853.0,0.00026812,120]
[420593578,1776288350948,498.0,0.00026812,120]
[420593583,1776288445540,162.0,0.00026812,120]
[420593585,1776288485897,2998.5963111,0.00027397,120]
[420593652,1776288632189,-3109.48003944,7.761e-05,2]
[420593654,1776288632205,-1890.51996056,7.761e-05,2]
[420593656,1776288632216,-300.0,7.839e-05,2]
[420593658,1776288632226,-300.0,7.839e-05,2]
[420593660,1776288632236,-1200.0,7.839e-05,2]
[420593662,1776288632246,-530.0,7.84e-05,2]
[420593664,1776288632255,-289.51285118,7.92e-05,2]
[420593666,1776288632265,-1953.34,8e-05,2]
[420593668,1776288632275,-300.0,8.077e-05,2]
[420593670,1776288632284,-300.0,8.077e-05,2]
[420593672,1776288632294,-300.0,8.077e-05,2]
[420593674,1776288632304,-300.0,8.077e-05,2]
[420593677,1776288632313,-300.0,8.077e-05,2]
[420593679,1776288632322,-300.0,8.077e-05,2]
[420593681,1776288632332,-300.0,8.077e-05,2]
[420593683,1776288632341,-300.0,8.077e-05,2]
[420593685,1776288632351,-300.0,8.077e-05,2]
[420593687,1776288632360,-300.0,8.077e-05,2]
[420593689,1776288632369,-300.0,8.077e-05,2]
[420593691,1776288632379,-300.0,8.077e-05,2]
[420593693,1776288632388,-300.0,8.077e-05,2]
[420593695,1776288632398,-300.0,8.077e-05,2]
[420593697,1776288632407,-300.0,8.077e-05,2]
[420593699,1776288632417,-846.7521535,9.086e-05,2]
[420593701,1776288632426,-341.6251644,9.92e-05,2]
[420593703,1776288632435,-235.22049158,0.00010289,2]
[420593706,1776288632448,-611.53166192,0.00010289,2]
[420593708,1776288632457,-349.51723502,0.0001042,2]
[420593713,1776288632499,-2501.47216158,0.0001042,2]
[420593715,1776288632510,-4541.78520493,0.0001042,2]
[420593717,1776288632519,-184.0,0.0001043,2]
[420593719,1776288632529,-1875.22705471,0.00010599,2]
[420593721,1776288632539,-500.0,0.00010959,2]
[420593723,1776288632548,-500.0,0.00011252,2]
[420593725,1776288632557,-102.09888901,0.00011252,2]
[420593728,1776288632569,-397.90111099,0.00011252,2]
[420593730,1776288632579,-502.81590467,0.00011252,2]
[420593732,1776288632589,-846.7521535,0.00011491,2]
[420593734,1776288632598,-160.0,0.00011508,2]
[420593736,1776288632609,-253.219064,0.00011567,2]
[420593738,1776288632618,-500.0,0.00011623,2]
[420593740,1776288632627,-500.0,0.00011624,2]
[420593742,1776288632637,-500.0,0.00011624,2]
[420593744,1776288632646,-500.0,0.00011624,2]
[420593746,1776288632655,-163.58013,0.00011624,2]
[420593748,1776288632665,-500.0,0.00011624,2]
[420593750,1776288632675,-500.0,0.00011624,2]
[420593752,1776288632685,-500.0,0.00011624,2]
[420593754,1776288632695,-500.0,0.00011624,2]
[420593756,1776288632705,-142.0445532,0.00011624,2]
[420593758,1776288632717,-357.9554468,0.00011624,2]
[420593760,1776288632727,-187.18000715,0.00011624,2]
[420593762,1776288632736,-500.0,0.00011624,2]
[420593764,1776288632746,-500.0,0.00011624,2]
[420593766,1776288632756,-500.0,0.00011624,2]
[420593768,1776288632765,-500.0,0.00011624,2]
[420593770,1776288632775,-375.09718524,0.00011624,2]
[420593772,1776288632784,-500.0,0.00011624,2]
[420593774,1776288632794,-530.0,0.00011624,2]
[420593776,1776288632803,-110.36013602,0.00011628,2]
[420593822,1776288638910,-500.0,0.00011624,2]
[420593824,1776288638920,-500.0,0.00011624,2]
[420593826,1776288638931,-500.0,0.00011624,2]
[420593828,1776288638940,-282.0,0.00011624,2]
[420593830,1776288638950,-500.0,0.00011624,2]
[420593832,1776288638959,-500.0,0.00011624,2]
[420593835,1776288638968,-500.0,0.00011624,2]
[420593837,1776288638978,-5901.15608763,0.00011628,2]
[420593839,1776288638987,-152.0,0.00011805,7]
[420593840,1776288638996,-300.0,0.00011855,2]
[420593841,1776288639006,-300.0,0.00011855,2]
[420593842,1776288639015,-600.0,0.00011859,2]
[420593843,1776288639024,-393.73747761,0.0001192,2]
[420593844,1776288639033,-388.9714502,0.00012,2]
[420593845,1776288639042,-763.66594033,0.00012,2]
[420593846,1776288639052,-301.41291533,0.00012,2]
[420593847,1776288639061,-253.219064,0.00012054,2]
[420593848,1776288639070,-181.26449529,0.00012131,2]
[420593849,1776288639079,-500.0,0.00012131,2]
[420593850,1776288639088,-500.0,0.00012131,2]
[420593851,1776288639097,-500.0,0.00012131,2]
[420593852,1776288639106,-366.64742147,0.00012131,2]
[420593853,1776288639115,-636.01537461,0.00012131,2]
[420593854,1776288639124,-500.0,0.00012131,2]
[420593855,1776288639133,-500.0,0.00012131,2]
[420593856,1776288639143,-500.0,0.00012131,2]
[420593857,1776288639152,-500.0,0.00012131,2]
[420593858,1776288639161,-500.0,0.00012131,2]
[420593859,1776288639170,-500.0,0.00012131,2]
[420593860,1776288639179,-500.0,0.00012131,2]
[420593861,1776288639188,-500.0,0.00012131,2]
[420593862,1776288639197,-500.0,0.00012131,2]
[420593863,1776288639206,-500.0,0.00012131,2]
[420593864,1776288639216,-500.0,0.00012131,2]
[420593865,1776288639225,-500.0,0.00012131,2]
[420593866,1776288639234,-500.0,0.00012131,2]
[420593867,1776288639243,-500.0,0.00012131,2]
[420593868,1776288639252,-500.0,0.00012131,2]
[420593869,1776288639261,-360.56448242,0.00012131,2]
[420593870,1776288639270,-500.0,0.00012131,2]
[420593871,1776288639279,-500.0,0.00012131,2]
[420593872,1776288639289,-500.0,0.00012131,2]
[420593873,1776288639298,-500.0,0.00012131,2]
[420593874,1776288639307,-500.0,0.00012131,2]
[420593875,1776288639317,-500.0,0.00012131,2]
[420593876,1776288639326,-600.0,0.00012131,2]
[420593877,1776288639335,-500.0,0.00012131,2]
[420593878,1776288639344,-500.0,0.00012131,2]
[420593879,1776288639354,-500.0,0.00012131,2]
[420593880,1776288639363,-500.0,0.00012131,2]
[420593881,1776288639551,-550.0,0.00012131,2]
[420593882,1776288639560,-500.0,0.00012131,2]
[420593883,1776288639570,-500.0,0.00012131,2]
[420593884,1776288639579,-500.0,0.00012131,2]
[420593885,1776288639588,-500.0,0.00012131,2]
[420593886,1776288639597,-500.0,0.00012131,2]
[420593887,1776288639607,-500.0,0.00012131,2]
[420593888,1776288639615,-734997.94897489,0.00012132,2]
[420593891,1776288640849,-300.0,0.00011855,2]
[420593892,1776288640859,-300.0,0.00011855,2]
[420593893,1776288640868,-11.42793442,0.00011855,2]
[420593966,1776288646994,-4058.69015394,0.00011736,2]
[420594064,1776289289967,403.0,0.00026756,120]
[420594065,1776289378218,179.0,0.00026756,120]
[420594066,1776289510482,404.0,0.00026756,120]
[420594068,1776289597704,810.0,0.00026756,120]
[420594069,1776289686863,473.0,0.00026756,120]
[420594070,1776289746007,1589.72,0.00027397,120]
[420594072,1776289801707,154.0,0.00026756,120]
[420594073,1776289828892,3434.55,0.000273,120]
[420594075,1776289832561,-3162.05196372,9.843e-05,2]
[420594076,1776289832617,-399.29698368,9.843e-05,2]
[420594184,1776289841307,-1125.34589103,9.843e-05,2]
[420594202,1776289843849,-313.30516157,9.843e-05,2]
[420594203,1776289843858,-559.0,9.942e-05,2]
[420594204,1776289843867,-278.60438962,0.00010132,2]
[420594205,1776289843876,-1609.9046858,0.00010552,2]
[420594206,1776289843885,-573.80107073,0.00010599,2]
[420594207,1776289843895,-48.12158977,0.00010599,2]
[420594238,1776289846901,-2247.08269317,0.00010599,2]
[420594240,1776289846911,-5159.04542697,0.00010599,2]
[420594242,1776289846921,-230.84988522,0.00010599,2]
[420594247,1776289847044,-205.50902543,0.00010599,2]
[420594248,1776289847053,-1745.43564261,0.00010599,2]
[420594249,1776289847063,-3074.40732648,0.00010599,2]
[420594250,1776289956747,6199.46527699,0.00027397,120]
[420594251,1776290032200,805.0,0.00027397,120]
[420594252,1776290036924,602.0,0.00027397,120]
[420594253,1776290039021,1663.0,0.00027397,120]
[420594254,1776290497067,175.0,0.00027397,120]
[420594255,1776290500591,696.0,0.00027397,120]
[420594256,1776290560288,2403.0,0.00027397,120]
[420594257,1776290613688,10000.0,0.00027397,120]
[420594258,1776290627875,1073.86,0.00027397,120]
[420594259,1776290644125,8338.4504919,0.00027397,120]
[420594260,1776290713968,437.0,0.00026822,120]
[420594263,1776290823074,194.0,0.00026842,120]
[420594264,1776290973979,442.0,0.00026842,120]
[420594293,1776291032002,-1107.68607439,8.462e-05,2]
[420594294,1776291032014,-515.6773213,8.462e-05,2]
[420594295,1776291038247,-3376.63660431,8.462e-05,2]
[420594296,1776291038257,-754.67316901,8.547e-05,2]
[420594297,1776291038267,-300.0,8.632e-05,2]
[420594298,1776291038276,-541.0,8.633e-05,2]
[420594299,1776291038287,-852.82286938,8.633e-05,2]
[420594300,1776291038297,-6974.76082786,8.633e-05,2]
[420594301,1776291038306,-346.98715241,8.769e-05,2]
[420594302,1776291038315,-531.06098563,9.088e-05,2]
[420594303,1776291038325,-282.29719423,9.387e-05,2]
[420594304,1776291038336,-2550.1403355,0.00010352,2]
[420594305,1776291038345,-160.0,0.00010657,2]
[420594306,1776291038355,-409.44483985,0.00010769,2]
[420594307,1776291038365,-150.0,0.00010795,2]
[420594308,1776291038375,-644.0,0.00010795,2]
[420594309,1776291038384,-2206.0,0.00010795,2]
[420594310,1776291038394,-1416.636,0.00010795,2]
[420594311,1776291038403,-444.228,0.00010795,2]
[420594312,1776291038413,-739.0,0.00010795,2]
[420594313,1776291038422,-184.0,0.00010795,2]
[420594314,1776291038432,-300.0,0.00010908,2]
[420594315,1776291038444,-300.0,0.00010908,2]
[420594316,1776291038453,-300.0,0.00010908,2]
[420594317,1776291038463,-300.0,0.00010908,2]
[420594318,1776291038473,-300.0,0.00010908,2]
[420594319,1776291038482,-300.0,0.00010908,2]
[420594320,1776291038492,-300.0,0.00010908,2]
[420594321,1776291038502,-300.0,0.00010908,2]
[420594322,1776291038511,-300.0,0.00010908,2]
[420594323,1776291038520,-300.0,0.00010908,2]
[420594324,1776291038530,-300.0,0.00010908,2]
[420594325,1776291038539,-300.0,0.00010908,2]
[420594326,1776291038548,-300.0,0.00010908,2]
[420594327,1776291038558,-300.0,0.00010908,2]
[420594328,1776291038567,-300.0,0.00010908,2]
[420594329,1776291038577,-150.0,0.0001096,2]
[420594330,1776291038586,-500.0,0.00011014,2]
[420594331,1776291038596,-500.0,0.00011014,2]
[420594332,1776291038605,-411.65629959,0.00011014,2]
[420594333,1776291038614,-500.0,0.00011014,2]
[420594334,1776291038624,-500.0,0.00011014,2]
[420594335,1776291038634,-500.0,0.00011014,2]
[420594336,1776291038644,-500.0,0.00011014,2]
[420594337,1776291038653,-500.0,0.00011014,2]
[420594338,1776291038662,-500.0,0.00011014,2]
[420594339,1776291038672,-500.0,0.00011014,2]
[420594340,1776291038682,-500.0,0.00011014,2]
[420594341,1776291038693,-500.0,0.00011014,2]
[420594342,1776291038702,-500.0,0.00011014,2]
[420594343,1776291038712,-232.33794317,0.00011014,2]
[420594344,1776291038721,-500.0,0.00011014,2]
[420594345,1776291038731,-500.0,0.00011014,2]
[420594346,1776291038740,-516.92524257,0.00011014,2]
[420594347,1776291038750,-500.0,0.00011014,2]
[420594348,1776291038758,-500.0,0.00011014,2]
[420594349,1776291038768,-500.0,0.00011014,2]
[420594350,1776291038777,-500.0,0.00011014,2]
[420594351,1776291038787,-500.0,0.00011014,2]
[420594352,1776291038796,-500.0,0.00011014,2]
[420594353,1776291038805,-500.0,0.00011014,2]
[420594354,1776291038819,-500.0,0.00011014,2]
[420594355,1776291038828,-500.0,0.00011014,2]
[420594356,1776291038838,-522.50971852,0.00011014,2]
[420594357,1776291038847,-500.0,0.00011014,2]
[420594358,1776291038856,-500.0,0.00011014,2]
[420594359,1776291038865,-500.0,0.00011014,2]
[420594360,1776291038875,-500.0,0.00011014,2]
[420594361,1776291038884,-500.0,0.00011014,2]
[420594362,1776291038893,-500.0,0.00011014,2]
[420594363,1776291038903,-243.60916386,0.00011014,2]
[420594364,1776291038913,-500.0,0.00011014,2]
[420594365,1776291038923,-500.0,0.00011014,2]
[420594366,1776291038932,-93.88383813,0.00011014,2]
[420594367,1776291038968,-406.11616187,0.00011014,2]
[420594368,1776291038978,-500.0,0.00011014,2]
[420594369,1776291038988,-500.0,0.00011014,2]
[420594370,1776291038997,-500.0,0.00011014,2]
[420594371,1776291039008,-500.0,0.00011016,2]
[420594372,1776291039017,-537.6845,0.00011017,2]
[420594373,1776291039026,-1195.86947491,0.00011017,2]
[420594374,1776291039039,-761.98652509,0.00011017,2]
[420594375,1776291039048,-2150.738,0.00011017,2]
[420594376,1776291039058,-557.5788265,0.00011072,2]
[420594377,1776291039067,-2030.296672,0.00011072,2]
[420594378,1776291039077,-578.20924308,0.00011127,2]
[420594379,1776291039086,-2105.41764886,0.00011127,2]
[420594380,1776291039096,-599.60298507,0.00011182,2]
[420594381,1776291039105,-2183.31810187,0.00011182,2]
[420594382,1776291039115,-151.0,0.00011218,2]
[420594383,1776291039124,-621.78829552,0.00011237,2]
[420594384,1776291039134,-2264.10087164,0.00011237,2]
[420594385,1776291039143,-644.79446246,0.00011292,2]
[420594386,1776291039153,-2347.87260389,0.00011292,2]
[420594387,1776291039162,-791.0,0.000113,2]
[420594388,1776291039171,-668.65185757,0.00011347,2]
[420594389,1776291039181,-2434.74389024,0.00011347,2]
[420594390,1776291039191,-250.349567,0.00011368,2]
[420594391,1776291039200,-693.3919763,0.00011402,2]
[420594392,1776291039209,-2524.82941417,0.00011402,2]
[420594393,1776291039219,-537.6845,0.00011409,2]
[420594394,1776291039228,-719.04747942,0.00011457,2]
[420594395,1776291039238,-1171.54688516,0.00011457,2]
[420594396,1776291039248,-745.65223616,0.00011512,2]
[420594397,1776291039257,-686.10606249,0.00011522,2]
[420594398,1776291039267,-560.8253947,0.00011523,2]
[420594399,1776291039276,-334.03862079,0.00011523,2]
[420594400,1776291039286,-560.8253947,0.00011523,2]
[420594401,1776291039296,-560.8253947,0.00011523,2]
[420594402,1776291039306,-500.0,0.00011523,2]
[420594403,1776291039315,-500.0,0.00011523,2]
[420594404,1776291039325,-560.8253947,0.00011523,2]
[420594405,1776291039335,-560.8253947,0.00011523,2]
[420594406,1776291039345,-500.0,0.00011523,2]
[420594407,1776291039354,-560.8253947,0.00011523,2]
[420594408,1776291039363,-500.0,0.00011523,2]
[420594409,1776291039373,-391.26222511,0.00011523,2]
[420594410,1776291039382,-560.8253947,0.00011523,2]
[420594411,1776291039392,-560.8253947,0.00011523,2]
[420594412,1776291039401,-560.8253947,0.00011523,2]